bitfinex/quotes_BTCUSD_20250610
["timestamp","ask_amount","ask_price","bid_price","bid_amount"]
[1749585123798,0.69664478,109580.0,109570.0,6e-05]
[1749585124011,0.50500365,109580.0,109570.0,6e-05]
[1749585124215,0.51412906,109580.0,109570.0,6e-05]
[1749585124422,0.52325464,109580.0,109570.0,6e-05]
[1749585124850,0.70577035,109580.0,109570.0,6e-05]
[1749585125520,0.77887309,109580.0,109570.0,6e-05]
[1749585125732,0.68951969,109580.0,109570.0,6e-05]
[1749585125970,0.60189897,109570.0,109560.0,0.002]
[1749585126201,0.8098587,109570.0,109560.0,0.002]
[1749585126696,0.79160596,109570.0,109560.0,0.002]
[1749585127150,0.64199425,109570.0,109560.0,0.002]
[1749585127361,0.65359931,109570.0,109560.0,0.002]
[1749585127569,0.63142531,109570.0,109560.0,0.002]
[1749585128001,0.63142539,109570.0,109560.0,0.002]
[1749585128209,0.65592539,109570.0,109560.0,0.002]
[1749585128446,0.64679931,109570.0,109560.0,0.002]
[1749585128653,0.65592522,109570.0,109560.0,0.002]
[1749585128866,0.79570519,109570.0,109560.0,0.002]
[1749585129081,0.66415196,109570.0,109560.0,0.002]
[1749585129286,0.85581017,109570.0,109560.0,0.002]
[1749585129493,0.65502555,109570.0,109560.0,0.002]
[1749585129701,0.66315188,109570.0,109560.0,0.002]
[1749585129909,0.86393658,109570.0,109560.0,0.002]
[1749585130146,0.84468451,109570.0,109560.0,0.003]
[1749585130350,0.64389956,109570.0,109560.0,0.004]
[1749585130562,0.83555794,109570.0,109560.0,0.004]
[1749585130765,0.92319975,109570.0,109560.0,0.004]
[1749585130983,0.83555794,109570.0,109560.0,0.004]
[1749585131706,0.85795794,109570.0,109560.0,0.004]
[1749585132892,0.67542573,109570.0,109560.0,0.004]
[1749585133117,0.63357348,109570.0,109560.0,0.004]
[1749585133342,0.48087923,109570.0,109560.0,0.004]
[1749585133563,0.60355854,109570.0,109560.0,0.004]
[1749585133786,0.61268462,109570.0,109560.0,0.004]
[1749585134011,0.61809939,109570.0,109560.0,0.004]
[1749585134232,0.65915164,109570.0,109560.0,0.004]
[1749585134458,0.84168394,109570.0,109560.0,0.004]
[1749585134898,0.65915223,109570.0,109560.0,0.004]
[1749585135123,0.70128394,109570.0,109560.0,0.01036787]
[1749585135339,0.85081052,109570.0,109560.0,0.0273489]
[1749585135566,0.85081052,109570.0,109560.0,0.02734884]
[1749585135787,0.84168452,109570.0,109560.0,0.02734897]
[1749585136016,0.84168452,109570.0,109560.0,0.01698114]
[1749585136242,0.01335788,109550.0,109530.0,0.0462]
[1749585136514,0.44748,109540.0,109530.0,0.06318145]
[1749585137217,0.34,109540.0,109530.0,0.06318145]
[1749585137666,0.34,109540.0,109530.0,0.08818044]
[1749585138110,0.34,109540.0,109530.0,0.08818211]
[1749585138339,0.34,109540.0,109530.0,0.08818288]
[1749585138570,0.34,109540.0,109530.0,0.02498288]
[1749585138796,0.34,109540.0,109530.0,0.02098559]
[1749585139286,0.34,109540.0,109530.0,0.02498785]
[1749585139745,0.36736794,109540.0,109530.0,0.004]
[1749585139961,0.34,109530.0,109520.0,0.0469]
[1749585140442,0.34,109530.0,109520.0,0.06388979]
[1749585140671,0.34,109530.0,109520.0,0.0469]
[1749585141343,0.34047893,109530.0,109520.0,0.06388959]
[1749585141574,0.34047893,109530.0,109520.0,0.06788971]
[1749585142063,0.34047893,109530.0,109520.0,0.06788957]
[1749585142298,0.00047893,109530.0,109520.0,0.0549]
[1749585142532,0.00047893,109530.0,109520.0,0.07188765]
[1749585142765,0.00047893,109530.0,109520.0,0.07188763]
[1749585143018,0.00047893,109530.0,109520.0,0.07188764]
[1749585143247,0.00990295,109530.0,109520.0,0.67867818]
[1749585143478,0.002,109570.0,109530.0,0.225]
[1749585143726,0.002,109570.0,109540.0,0.65169059]
[1749585143970,0.002,109570.0,109550.0,0.27246075]
[1749585144194,0.01117365,109570.0,109550.0,0.01697036]
[1749585144426,0.01117365,109570.0,109540.0,0.16381415]
[1749585144635,0.342,109570.0,109540.0,0.16381415]
[1749585144848,0.342,109570.0,109540.0,0.18078536]
[1749585145064,0.342,109570.0,109540.0,0.16381415]
[1749585145288,0.10948,109570.0,109540.0,0.16381415]
[1749585145502,0.10948,109570.0,109540.0,0.18078538]
[1749585145693,0.22866108,109570.0,109540.0,0.01897397]
[1749585145981,0.22866108,109570.0,109540.0,0.02097621]
[1749585146192,0.23788007,109570.0,109540.0,0.0209763]
[1749585146402,0.23788007,109570.0,109540.0,0.09343676]
[1749585146403,0.14652667,109570.0,109540.0,0.09343676]
[1749585146612,0.14652667,109570.0,109540.0,0.07646075]
[1749585147038,0.14652667,109570.0,109540.0,0.09343655]
[1749585147249,0.14652667,109570.0,109540.0,0.09343638]
[1749585147453,0.1556525,109570.0,109540.0,0.02097565]
[1749585147661,0.14652667,109570.0,109540.0,0.02097851]
[1749585147893,0.14652667,109570.0,109540.0,0.004]
[1749585148551,0.14652667,109570.0,109540.0,0.02734766]
[1749585148978,0.14652667,109570.0,109540.0,0.02734938]
[1749585149198,0.14652667,109570.0,109540.0,0.01036935]
[1749585149444,0.14652667,109570.0,109540.0,0.004]
[1749585149660,0.14652667,109570.0,109540.0,0.02099232]
[1749585149879,0.14652667,109570.0,109540.0,0.02099132]
[1749585150103,0.14652667,109570.0,109540.0,0.02736625]
[1749585150323,0.14652667,109570.0,109540.0,0.02099424]
[1749585150549,0.14652667,109570.0,109540.0,0.02736703]
[1749585150754,0.14652667,109570.0,109540.0,0.02736699]
[1749585150965,0.14652667,109570.0,109540.0,0.02737034]
[1749585151221,0.14652667,109570.0,109540.0,0.02737048]
[1749585151439,0.14652667,109570.0,109540.0,0.004]
[1749585151729,0.15565258,109570.0,109540.0,0.0210033]
[1749585151963,0.25613214,109570.0,109540.0,0.02738808]
[1749585152617,0.25613214,109570.0,109540.0,0.02103193]
[1749585152835,0.25613214,109570.0,109540.0,0.02741909]
[1749585153044,0.25613214,109570.0,109540.0,0.0103877]
[1749585153337,0.36366751,109560.0,109540.0,0.01038792]
[1749585153551,0.36366751,109560.0,109540.0,0.02742404]
[1749585154442,0.36366751,109560.0,109540.0,0.02742997]
[1749585154655,0.10744,109550.0,109540.0,0.002]
[1749585154871,0.34,109540.0,109520.0,0.14732431]
[1749585155051,0.34,109540.0,109520.0,0.24506777]
[1749585155291,0.34,109540.0,109520.0,0.25571945]
[1749585155499,0.34,109540.0,109520.0,0.25571944]
[1749585155724,0.34,109540.0,109520.0,0.26211008]
[1749585155931,0.34,109540.0,109520.0,0.19337951]
[1749585156338,0.34,109540.0,109520.0,0.18698783]
[1749585156550,0.34,109540.0,109530.0,0.07246075]
[1749585156756,0.34,109540.0,109520.0,0.07859373]
[1749585156970,0.34,109540.0,109520.0,0.09563653]
[1749585157183,0.34,109540.0,109520.0,0.09563739]
[1749585157397,0.34,109540.0,109520.0,0.08498547]
[1749585157614,0.34,109540.0,109520.0,0.08259373]
[1749585157840,0.34,109540.0,109520.0,0.03357288]
[1749585158063,0.34,109540.0,109520.0,0.02718148]
[1749585158315,0.34,109540.0,109520.0,0.0165262]
[1749585158538,0.34,109540.0,109520.0,0.02717987]
[1749585158754,0.44048181,109540.0,109520.0,0.02718086]
[1749585158959,0.44744,109530.0,109520.0,0.02718086]
[1749585159178,0.44744,109530.0,109520.0,0.01013298]
[1749585159399,0.44744,109530.0,109520.0,0.02957728]
[1749585159628,0.44744,109530.0,109520.0,0.00913298]
[1749585159847,0.44744,109530.0,109520.0,0.03257894]
[1749585160059,0.44744,109530.0,109520.0,0.02618506]
[1749585160276,0.44744,109530.0,109520.0,0.01552767]
[1749585160490,0.44744,109530.0,109520.0,0.02218588]
[1749585160707,0.44744,109530.0,109520.0,0.00852795]
[1749585160975,0.44744,109530.0,109520.0,0.02218734]
[1749585161194,0.44744,109530.0,109520.0,0.01352836]
[1749585161402,0.44744,109530.0,109520.0,0.00413298]
[1749585161624,0.44744,109530.0,109520.0,0.01052759]
[1749585161857,0.44744,109530.0,109520.0,0.02318592]
[1749585162073,0.34,109530.0,109520.0,0.00613298]
[1749585162284,0.474826,109530.0,109520.0,0.00613298]
[1749585162501,0.474826,109530.0,109520.0,0.01252639]
[1749585162713,0.367386,109530.0,109520.0,0.01252579]
[1749585162931,0.474786,109530.0,109520.0,0.01252572]
[1749585163152,0.4474,109530.0,109520.0,0.01252573]
[1749585163371,0.4474,109530.0,109520.0,0.02957308]
[1749585163576,0.4474,109530.0,109520.0,0.02318053]
[1749585163793,0.4474,109530.0,109520.0,0.00613298]
[1749585164007,0.4474,109530.0,109520.0,0.02957321]
[1749585164228,0.44147038,109530.0,109520.0,0.02317949]
[1749585164438,0.33407038,109530.0,109520.0,0.02957186]
[1749585164660,0.44147038,109530.0,109520.0,0.04022583]
[1749585164926,0.44147038,109530.0,109520.0,0.02317949]
[1749585165135,0.44147038,109530.0,109520.0,0.02957186]
[1749585165343,0.44147038,109530.0,109520.0,0.02317949]
[1749585165565,0.44147038,109530.0,109520.0,0.04022488]
[1749585166032,0.44147038,109530.0,109520.0,0.02957136]
[1749585166245,0.44147038,109530.0,109520.0,0.02317949]
[1749585166455,0.44147038,109530.0,109520.0,0.02957109]
[1749585166666,0.44147038,109530.0,109520.0,0.04661538]
[1749585166879,0.44147038,109530.0,109520.0,0.04661516]
[1749585167108,0.44147038,109530.0,109520.0,0.02957103]
[1749585167324,0.33407038,109530.0,109520.0,0.02317949]
[1749585167529,0.44147038,109530.0,109520.0,0.04660809]
[1749585167742,0.44147038,109530.0,109520.0,0.04660441]
[1749585167946,0.44147038,109530.0,109520.0,0.0402158]
[1749585168159,0.33407038,109530.0,109520.0,0.02317949]
[1749585168369,0.44147038,109530.0,109520.0,0.02956785]
[1749585168639,0.44147038,109530.0,109520.0,0.02317949]
[1749585168856,0.33407038,109530.0,109520.0,0.15656782]
[1749585169071,0.33407038,109530.0,109520.0,0.22902569]
[1749585169295,0.33407038,109530.0,109520.0,0.23541254]
[1749585169512,0.33407038,109530.0,109520.0,0.22902534]
[1749585169713,0.33407038,109530.0,109520.0,0.22902515]
[1749585169922,0.33407038,109530.0,109520.0,0.21838045]
[1749585170345,0.33407038,109530.0,109520.0,0.23541189]
[1749585170554,0.33407038,109530.0,109520.0,0.22902495]
[1749585170763,0.33407038,109530.0,109520.0,0.22902486]
[1749585171004,0.33407038,109530.0,109520.0,0.21199364]
[1749585171239,0.33407038,109530.0,109520.0,0.22902493]
[1749585171453,0.1074,109550.0,109520.0,0.22902485]
[1749585171673,0.34,109540.0,109530.0,0.07246075]
[1749585171892,0.34,109540.0,109520.0,0.21199364]
[1749585172108,0.34,109540.0,109520.0,0.2354089]
[1749585172332,0.34,109540.0,109520.0,0.23540869]
[1749585172523,0.34,109540.0,109520.0,0.22702293]
[1749585172802,0.34,109540.0,109520.0,0.23340879]
[1749585173019,0.34,109540.0,109520.0,0.21199364]
[1749585173227,0.34,109540.0,109520.0,0.23540858]
[1749585173451,0.34,109540.0,109520.0,0.23340855]
[1749585173670,0.34,109540.0,109520.0,0.21837952]
[1749585173886,0.34,109540.0,109530.0,0.07246075]
[1749585174091,0.34,109540.0,109530.0,0.09587298]
[1749585174292,0.34,109540.0,109530.0,0.07884582]
[1749585174502,0.34,109540.0,109530.0,0.07246075]
[1749585174723,0.34,109540.0,109530.0,0.18722618]
[1749585175338,0.34,109540.0,109530.0,0.18084108]
[1749585175546,0.34,109540.0,109530.0,0.17019867]
[1749585175755,0.34,109540.0,109530.0,0.18722406]
[1749585175963,0.34,109540.0,109530.0,0.17019867]
[1749585176181,0.34,109540.0,109530.0,0.16381415]
[1749585176440,0.34,109540.0,109530.0,0.08948891]
[1749585176647,0.34,109540.0,109530.0,0.09587657]
[1749585176850,0.34,109540.0,109530.0,0.02341582]
[1749585177271,0.34,109540.0,109520.0,0.09164024]
[1749585177706,0.34,109540.0,109520.0,0.11505867]
[1749585177906,0.34,109540.0,109520.0,0.11505994]
[1749585178112,0.34,109540.0,109520.0,0.11506001]
[1749585178324,0.34,109540.0,109520.0,0.11506012]
[1749585178976,0.34,109540.0,109520.0,0.11706105]
[1749585179380,0.34,109540.0,109520.0,0.11067288]
[1749585179502,0.34,109540.0,109520.0,0.11906389]
[1749585180379,0.34,109540.0,109520.0,0.11906503]
[1749585180580,0.38192185,109560.0,109520.0,0.11906503]
[1749585180737,0.47327525,109560.0,109520.0,0.21041843]
[1749585181040,0.34,109540.0,109520.0,0.21041902]
[1749585181242,0.33407099,109540.0,109520.0,0.18699364]
[1749585181438,0.33407099,109540.0,109520.0,0.21041756]
[1749585181644,0.33407099,109540.0,109530.0,0.07246075]
[1749585181859,0.027381,109560.0,109530.0,0.38723482]
[1749585182059,0.134741,109560.0,109540.0,0.07262954]
[1749585182286,0.134741,109560.0,109540.0,0.09605021]
[1749585182472,0.134741,109560.0,109540.0,0.09604752]
[1749585182703,0.134741,109560.0,109540.0,0.02341157]
[1749585182928,0.134741,109560.0,109540.0,0.02341329]
[1749585183087,0.134741,109560.0,109540.0,0.02341476]
[1749585183299,0.34,109550.0,109540.0,0.02341476]
[1749585183569,0.34,109550.0,109540.0,0.02341516]
[1749585184353,0.34,109550.0,109540.0,0.00638584]
[1749585184554,0.34,109550.0,109540.0,0.02341509]
[1749585184756,0.34,109550.0,109540.0,0.00638593]
[1749585184964,0.34,109550.0,109540.0,0.02341509]
[1749585185152,0.341,109550.0,109530.0,0.36398294]
[1749585185346,0.341,109550.0,109530.0,0.38738993]
[1749585185843,0.341,109550.0,109530.0,0.38100969]
[1749585186052,0.342,109550.0,109530.0,0.38739473]
[1749585186300,0.342,109550.0,109530.0,0.97273185]
[1749585186301,0.002,109550.0,109530.0,0.97273185]
[1749585186510,0.341,109550.0,109540.0,0.07262954]
[1749585186705,0.34,109550.0,109540.0,0.09603774]
[1749585186862,0.34,109550.0,109540.0,0.09603769]
[1749585187223,0.20658467,109570.0,109540.0,0.08965362]
[1749585187423,0.20658467,109570.0,109540.0,0.09603761]
[1749585187624,0.20658467,109570.0,109540.0,0.09165372]
[1749585187848,0.06642467,109570.0,109540.0,0.47480842]
[1749585188056,0.03904667,109570.0,109550.0,0.1163534]
[1749585188302,0.03904667,109570.0,109550.0,0.07262954]
[1749585188523,0.37904667,109570.0,109550.0,0.07262954]
[1749585188749,0.37904667,109570.0,109540.0,0.07662954]
[1749585189074,0.48636667,109570.0,109540.0,0.19138887]
[1749585189465,0.48636667,109570.0,109540.0,0.18938533]
[1749585189666,0.48636667,109570.0,109540.0,0.19137514]
[1749585189905,0.57772007,109570.0,109540.0,0.10002221]
[1749585190120,0.34,109550.0,109540.0,0.0273963]
[1749585190355,0.46186085,109550.0,109540.0,0.02740243]
[1749585190569,0.46186085,109550.0,109540.0,0.02540375]
[1749585190793,0.44589425,109550.0,109540.0,0.02540375]
[1749585191003,0.79600277,109550.0,109540.0,0.02540375]
[1749585191231,0.60430966,109550.0,109540.0,0.02540676]
[1749585191468,0.80513102,109550.0,109540.0,0.02740753]
[1749585191741,0.62256599,109550.0,109540.0,0.01038686]
[1749585191953,0.82813093,109550.0,109540.0,0.01903189]
[1749585192156,0.81900335,109550.0,109540.0,0.02541916]
[1749585192366,0.84120335,109550.0,109540.0,0.02541916]
[1749585192587,0.65963832,109550.0,109540.0,0.02341372]
[1749585192793,0.65963832,109550.0,109540.0,0.02339921]
[1749585192939,0.66063832,109550.0,109540.0,0.02339921]
[1749585193137,0.01454085,109540.0,109520.0,0.01917949]
[1749585193346,0.49282,109530.0,109520.0,0.02556156]
[1749585193548,0.49282,109530.0,109520.0,0.03619836]
[1749585193785,0.520208,109530.0,109520.0,0.02556173]
[1749585193964,0.53474885,109530.0,109520.0,0.04258119]
[1749585194246,0.63523158,109530.0,109520.0,0.04258119]
[1749585194449,0.62610225,109530.0,109520.0,0.04257636]
[1749585194654,0.62610225,109530.0,109520.0,0.0445764]
[1749585194858,0.62610225,109530.0,109520.0,0.03819677]
[1749585194859,0.65349057,109530.0,109520.0,0.03819677]
[1749585195064,0.6626204,109530.0,109520.0,0.02117949]
[1749585195267,0.6626204,109530.0,109520.0,0.02556121]
[1749585195472,0.65349057,109530.0,109520.0,0.02756126]
[1749585195680,0.66262032,109530.0,109520.0,0.02117949]
[1749585195881,0.84521935,109530.0,109520.0,0.0425797]
[1749585196093,0.66262098,109530.0,109520.0,0.0435797]
[1749585196290,0.53174562,109520.0,109510.0,0.01136174]
[1749585196518,0.49511464,109520.0,109510.0,0.01184067]
[1749585196721,0.68686018,109520.0,109510.0,0.01184067]
[1749585196945,0.67772968,109520.0,109510.0,0.01184067]
[1749585197774,0.67972968,109520.0,109510.0,0.01184067]
[1749585198324,0.69427053,109520.0,109510.0,0.01184067]
[1749585198670,0.71137915,109520.0,109510.0,0.01184067]
[1749585198902,0.01707911,109510.0,109500.0,0.0021]
[1749585199112,0.65161475,109510.0,109500.0,0.0021]
[1749585199588,0.64366697,109510.0,109500.0,0.0021]
[1749585199991,0.64466689,109510.0,109500.0,0.0021]
[1749585200355,0.64466689,109510.0,109470.0,0.027]
[1749585200356,0.03280476,109500.0,109470.0,0.027]
[1749585200629,0.03280476,109500.0,109460.0,0.50367066]
[1749585200630,0.53722261,109480.0,109460.0,0.00904112]
[1749585200925,0.55776994,109470.0,109460.0,0.00704112]
[1749585201177,0.84095704,109470.0,109460.0,0.00029906]
[1749585201391,0.83182237,109470.0,109460.0,0.00029906]
[1749585201849,0.89454641,109470.0,109460.0,0.00129906]
[1749585202063,0.89502484,109470.0,109460.0,0.00129906]
[1749585202289,0.0561568,109450.0,109440.0,0.002]
[1749585202498,0.2547902,109450.0,109440.0,0.002]
[1749585202937,0.1417368,109450.0,109440.0,0.002]
[1749585203197,0.34,109460.0,109440.0,0.002]
[1749585203403,0.15008,109450.0,109440.0,0.002]
[1749585203881,0.0913534,109460.0,109440.0,0.002]
[1749585204121,0.14016,109450.0,109440.0,0.004]
[1749585204333,0.19700085,109450.0,109440.0,0.004]
[1749585204541,0.63749025,109450.0,109440.0,0.004]
[1749585204781,0.82935834,109450.0,109440.0,0.003]
[1749585204998,0.83849484,109450.0,109440.0,0.003]
[1749585205202,0.86590576,109450.0,109440.0,0.003]
[1749585205406,0.88575224,109450.0,109440.0,0.003]
[1749585205624,0.88575224,109450.0,109440.0,0.005]
[1749585205851,0.41661662,109430.0,109420.0,0.10006]
[1749585206063,0.69987342,109430.0,109420.0,0.10006]
[1749585206268,0.69073566,109430.0,109420.0,0.10006]
[1749585206483,0.68159765,109430.0,109420.0,0.10006]
[1749585206698,0.50797034,109430.0,109420.0,0.10006]
[1749585207171,0.63951192,109430.0,109420.0,0.10006]
[1749585207379,0.91503421,109430.0,109420.0,0.10006]
[1749585207592,0.88189363,109430.0,109400.0,0.0184129]
[1749585207796,0.0619943,109410.0,109400.0,0.0184129]
[1749585208015,0.2613877,109410.0,109400.0,0.0184129]
[1749585208232,0.2613877,109410.0,109400.0,0.00928071]
[1749585208233,0.82736636,109410.0,109400.0,0.00928071]
[1749585208441,0.08686463,109390.0,109380.0,0.002]
[1749585208650,0.62625803,109390.0,109380.0,0.01890501]
[1749585208857,0.50907652,109390.0,109380.0,0.01890522]
[1749585209064,0.51821795,109390.0,109380.0,0.01890522]
[1749585209289,0.64093526,109390.0,109380.0,0.01890522]
[1749585209537,0.65921787,109390.0,109380.0,0.01890535]
[1749585209745,0.87009644,109390.0,109380.0,0.002]
[1749585209955,0.94364541,109390.0,109380.0,0.01890599]
[1749585210166,0.41752614,109370.0,109360.0,0.002]
[1749585210395,0.70088847,109370.0,109360.0,0.002]
[1749585210607,0.68260285,109370.0,109360.0,0.002]
[1749585210844,0.02368454,109360.0,109340.0,0.002]
[1749585211056,0.37938879,109350.0,109340.0,0.002]
[1749585211276,0.5015868,109350.0,109340.0,0.002]
[1749585211510,0.6898819,109350.0,109340.0,0.002]
[1749585211721,0.67669056,109350.0,109340.0,0.002]
[1749585211947,0.85990941,109350.0,109340.0,0.002]
[1749585212156,0.67701047,109350.0,109340.0,0.002]
[1749585212365,0.84162104,109350.0,109340.0,0.00214461]
[1749585212576,0.6587221,109350.0,109340.0,0.00214461]
[1749585212788,0.66786662,109350.0,109340.0,0.00214461]
[1749585212999,0.66786646,109350.0,109340.0,0.00214461]
[1749585213214,0.85112582,109350.0,109340.0,0.00214461]
[1749585213638,0.98333453,109350.0,109340.0,0.00214461]
[1749585213856,0.84273453,109350.0,109340.0,0.00214461]
[1749585214088,1.01250056,109350.0,109340.0,0.00214461]
[1749585214296,1.01250056,109350.0,109320.0,0.002]
[1749585214297,0.46997773,109350.0,109320.0,0.002]
[1749585214510,0.0219,109340.0,109320.0,0.00214462]
[1749585214688,0.13197773,109350.0,109320.0,0.00214462]
[1749585214939,0.14268,109340.0,109320.0,0.00214462]
[1749585215154,0.12997773,109350.0,109320.0,0.00214462]
[1749585215365,0.0913534,109340.0,109310.0,0.025]
[1749585215548,0.2352334,109340.0,109320.0,0.001]
[1749585215695,0.14396,109330.0,109320.0,0.001]
[1749585215911,0.04062433,109350.0,109320.0,0.1152534]
[1749585216108,0.04062433,109350.0,109330.0,0.1615534]
[1749585216325,0.03112603,109350.0,109330.0,0.3615534]
[1749585216921,0.03112603,109350.0,109330.0,0.3365534]
[1749585217196,0.04028148,109350.0,109330.0,0.3141534]
[1749585217348,0.03112603,109350.0,109330.0,0.3141534]
[1749585217561,0.004,109350.0,109330.0,0.2228]
[1749585217758,0.004,109350.0,109320.0,0.0229]
[1749585217961,0.004,109350.0,109320.0,0.1142534]
[1749585218202,0.1482,109350.0,109320.0,0.1142534]
[1749585218521,0.26443058,109350.0,109320.0,0.0913534]
[1749585219178,0.26443058,109350.0,109320.0,0.00630731]
[1749585219179,0.35578398,109350.0,109320.0,0.00630731]
[1749585219352,0.35578398,109350.0,109310.0,0.20645203]
[1749585219575,0.35578398,109350.0,109310.0,0.31359812]
[1749585219984,0.42993432,109350.0,109310.0,0.3199055]
[1749585220187,0.35578398,109350.0,109310.0,0.31359812]
[1749585220362,0.35578398,109350.0,109320.0,4e-05]
[1749585220562,0.19038398,109350.0,109320.0,4e-05]
[1749585220774,0.1442,109340.0,109320.0,4e-05]
[1749585220985,0.24890573,109350.0,109320.0,4e-05]
[1749585221612,0.14412,109340.0,109320.0,4e-05]
[1749585222214,0.10984,109330.0,109320.0,0.01682762]
[1749585222428,0.10984,109330.0,109320.0,4e-05]
[1749585222840,0.10984,109330.0,109320.0,0.01682842]
[1749585223071,0.10984,109330.0,109320.0,0.01682806]
[1749585223267,0.4842,109340.0,109320.0,0.01682779]
[1749585223424,0.4842,109340.0,109320.0,0.00104]
[1749585223627,0.4842,109340.0,109320.0,0.01782743]
[1749585223825,0.4842,109340.0,109320.0,0.01682743]
[1749585224027,0.4842,109340.0,109320.0,4e-05]
[1749585224287,0.4842,109340.0,109320.0,0.01784873]
[1749585224673,0.34,109340.0,109320.0,0.01784796]
[1749585224876,0.34,109340.0,109320.0,4e-05]
[1749585225211,0.34,109340.0,109320.0,0.01784796]
[1749585225353,0.34,109340.0,109320.0,0.01784752]
[1749585225354,0.48396,109340.0,109320.0,0.01784752]
[1749585225552,0.34,109340.0,109320.0,0.01784752]
[1749585225755,0.34,109340.0,109320.0,0.00104]
[1749585226106,0.34,109340.0,109320.0,0.01784754]
[1749585226308,0.48384,109340.0,109320.0,0.00104]
[1749585226506,0.48384,109340.0,109320.0,0.017847]
[1749585226704,0.34,109340.0,109320.0,0.017847]
[1749585226915,0.48376,109340.0,109320.0,0.00104]
[1749585227125,0.48376,109340.0,109320.0,0.01784722]
[1749585227272,0.48376,109340.0,109320.0,0.01784756]
[1749585227892,0.48376,109340.0,109320.0,0.00104]
[1749585228095,0.48376,109340.0,109320.0,0.01786438]
[1749585228726,0.48376,109340.0,109320.0,0.00104]
[1749585228929,0.34,109340.0,109320.0,0.00104]
[1749585229132,0.48348,109340.0,109320.0,0.01786438]
[1749585229545,0.48348,109340.0,109320.0,0.00104]
[1749585229817,0.50538,109340.0,109320.0,0.00737391]
[1749585230077,0.4836,109330.0,109320.0,0.00104]
[1749585230337,0.24444379,109320.0,109310.0,0.00014472]
[1749585230565,0.35829566,109310.0,109300.0,0.0091]
[1749585230823,0.79464372,109310.0,109300.0,0.02614168]
[1749585231040,0.49284956,109310.0,109300.0,0.00010617]
[1749585231256,0.81985543,109310.0,109300.0,0.01700359]
[1749585231457,0.64603777,109310.0,109300.0,0.00786545]
[1749585231665,0.63688923,109310.0,109300.0,0.00786545]
[1749585231892,0.0217,109300.0,109290.0,0.0164129]
[1749585232133,0.0217,109300.0,109290.0,0.01655789]
[1749585232580,0.4750534,109310.0,109290.0,0.01655789]
[1749585232805,0.001,109310.0,109290.0,0.01655789]
[1749585233033,0.14496,109310.0,109290.0,0.13291129]
[1749585233250,0.14396,109310.0,109290.0,0.13923781]
[1749585233471,0.14396,109310.0,109290.0,0.02290381]
[1749585233916,0.14396,109310.0,109290.0,0.02290383]
[1749585234331,0.14388,109300.0,109290.0,0.02290383]
[1749585234537,0.36765166,109300.0,109290.0,0.02290383]
[1749585234989,0.36765166,109300.0,109290.0,0.02290384]
[1749585235193,0.36765166,109300.0,109290.0,0.01655789]
[1749585235401,0.09613058,109330.0,109290.0,0.33929952]
[1749585235402,0.0234,109330.0,109290.0,0.33929952]
[1749585235621,0.0234,109330.0,109300.0,0.0913534]
[1749585235622,0.14648,109330.0,109300.0,0.0913534]
[1749585235839,0.34,109320.0,109300.0,0.0913534]
[1749585236060,0.34,109320.0,109300.0,0.00638795]
[1749585236262,0.45024,109310.0,109300.0,0.00638795]
[1749585236683,0.45024,109310.0,109290.0,0.21655789]
[1749585236893,0.45024,109310.0,109290.0,0.31430208]
[1749585237099,0.34,109310.0,109290.0,0.30791129]
[1749585237363,0.341,109310.0,109290.0,0.31430208]
[1749585237521,0.45116,109310.0,109290.0,0.31430208]
[1749585237732,0.341,109310.0,109290.0,0.31430208]
[1749585238358,0.341,109310.0,109290.0,0.35860208]
[1749585238584,0.34,109310.0,109290.0,0.35860208]
[1749585238788,0.34,109310.0,109290.0,0.35860423]
[1749585238997,0.34,109310.0,109290.0,0.36060425]
[1749585239415,0.34,109310.0,109300.0,0.0913534]
[1749585239618,0.14428,109320.0,109300.0,0.09774646]
[1749585240034,0.14428,109320.0,109300.0,0.0977461]
[1749585240239,0.14428,109320.0,109300.0,0.09774615]
[1749585240447,0.16618,109320.0,109300.0,0.00639303]
[1749585240662,0.16618,109320.0,109300.0,0.00639313]
[1749585240902,0.07473058,109330.0,109300.0,0.29774649]
[1749585241158,0.21905058,109330.0,109300.0,0.2913534]
[1749585241364,0.07473058,109330.0,109300.0,0.29774617]
[1749585241567,0.21905058,109330.0,109300.0,0.29774617]
[1749585242030,0.24055058,109330.0,109300.0,0.09774617]
[1749585242238,0.24055058,109330.0,109300.0,0.09774524]
[1749585242457,0.26255058,109330.0,109300.0,0.0913534]
[1749585242671,0.26255058,109330.0,109300.0,0.09774526]
[1749585243099,0.26255058,109330.0,109300.0,0.00639186]
[1749585243100,0.0225,109320.0,109300.0,0.00639186]
[1749585243312,0.02157932,109320.0,109300.0,0.00639186]
[1749585243530,0.362,109320.0,109300.0,0.02344725]
[1749585243757,0.10988,109310.0,109300.0,0.00639186]
[1749585243984,0.10988,109310.0,109300.0,0.02345164]
[1749585244196,0.10988,109310.0,109300.0,0.02345174]
[1749585244405,0.10988,109310.0,109300.0,0.00639593]
[1749585244602,0.10988,109310.0,109300.0,0.02345174]
[1749585245502,0.14122754,109310.0,109300.0,0.02345978]
[1749585245701,0.14122754,109310.0,109300.0,0.02346105]
[1749585245702,0.22310574,109310.0,109300.0,0.02346105]
[1749585245975,0.13208,109310.0,109300.0,0.00639867]
[1749585246162,0.10988,109310.0,109300.0,0.02346179]
[1749585246365,0.10988,109310.0,109290.0,0.01655789]
[1749585246366,0.34,109300.0,109290.0,0.01655789]
[1749585246594,0.34,109300.0,109290.0,0.04001972]
[1749585247124,0.34,109300.0,109290.0,0.02295657]
[1749585247340,0.34,109300.0,109290.0,0.04001972]
[1749585247776,0.34,109300.0,109290.0,0.0400195]
[1749585247993,0.0441,109320.0,109290.0,0.0400195]
[1749585248213,0.03424,109320.0,109290.0,0.3333729]
[1749585248402,0.03424,109320.0,109300.0,0.1163534]
[1749585248642,0.03424,109320.0,109300.0,0.13981501]
[1749585248882,0.0461,109330.0,109300.0,0.13981501]
[1749585249288,0.0461,109330.0,109300.0,0.1398109]
[1749585249490,0.002,109330.0,109300.0,0.18480939]
[1749585249740,0.002,109330.0,109300.0,0.38480864]
[1749585250127,0.002,109330.0,109310.0,0.2]
[1749585250332,0.002,109330.0,109320.0,0.58971824]
[1749585250550,0.004,109350.0,109330.0,0.245]
[1749585250800,0.004,109350.0,109340.0,0.1163534]